[Event "Prague Festival Masters 2024"]
[Site "Prague"]
[Date "2024.03.02"]
[Round "5.5"]
[White "Maghsoodloo, Parham"]
[Black "Rapport, Richard"]
[Result "1/2-1/2"]
[ECO "A41"]
[WhiteElo "2740"]
[BlackElo "2717"]
[Annotator "TA"]
[PlyCount "193"]
[EventDate "2024.02.22"]
[EventType "tourn"]
[EventCountry "CZE"]
[SourceTitle "playchess.com"]
[Source "ChessBase"]
[SourceQuality "1"]
[TimeControl "40/5400+30:1800+30"]

{[%evp 9,193,8,21,15,8,11,33,25,33,27,18,27,29,35,41,-3,2,-44,-39,-39,-35,-38,-21,-42,-42,-134,-141,-339,-326,-325,-327,-317,-212,-207,-211,-253,-238,-246,-250,-256,-270,-270,-276,-257,-255,-284,-288,-283,-283,-300,-283,-258,-264,-288,-286,-267,-182,-183,-172,-166,-119,-201,-175,-325,-325,-214,-123,-103,-64,-70,-30,-94,-91,-99,-93,-85,-87,-85,-85,-89,-26,-77,-56,-85,-85,-111,-97,-225,-212,-213,-213,-195,-210,-368,-22,-27,0,-339,-342,-555,-589,-423,-571,-589,-576,-547,-311,-508,-452,-245,-167,-700,-599,-590,-573,-420,-420,-984,-1125,-1141,0,0,0,0,0,0,0,0,0,0,0,0,0,0,-104,-104,0,0,0,0,0,0,0,0,0,0,0,0,0,0,0,0,0,0,0,0,0,0,0,0,0,0,0,0,0,0,0,0,0,0,0,0,0,0,0,0,0,0,0,0,0,0,0,0,0,0]} 1. c4 {[%emt 0:00:04]} e5 {[%emt 0:01:26]} 2. Nc3 {[%emt 0:00:09]} d6 {[%emt 0:01:46]} 3. e3 {[%emt 0:02:06]} g6 {[%emt 0:00:35]} 4. d4 {[%emt 0:03:14]} Nd7 {[%emt 0:01:16]} 5. Bd3 {[%emt 0:07:46]} Bg7 {[%emt 0:01:53]} 6. Nge2 {[%emt 0:00:30]} a5 {[%emt 0:06:08]} 7. O-O {[%emt 0:07:34]} Ngf6 {[%emt 0:16:53]} 8. b3 {[%emt 0:19:16] White is slightly better.} O-O {[%emt 0:00:52]} 9. f3 {[%emt 0:01:33]} Re8 {[%emt 0:08:59]} 10. Rb1 {[%emt 0:06:40]} b6 {[%emt 0:16:26]} 11. Bc2 {[%emt 0:01:56]} c6 {[%emt 0:11:20]} 12. Rf2 {[%emt 0:11:05]} Ba6 {[%emt 0:02:55]} 13. a4 {[%emt 0:04:28]} (13. d5 $11) 13... d5 {[%emt 0:02:02]} 14. cxd5 {[%emt 0:00:20]} Nxd5 {[%emt 0:01:15]} 15. Nxd5 {[%emt 0:00:07]} cxd5 {[%emt 0:00:16]} 16. dxe5 {[%emt 0:00:15]} Nxe5 {[%emt 0:02:09]} (16... Rxe5 17. Nf4 $11) 17. Nf4 {[%emt 0:02:37]} (17. Bb2 $15) 17... d4 $1 $17 {[%emt 0:00:44]} 18. exd4 {[%emt 0:17:03] [#]} (18. Be4 $17 Ng4 19. Bxa8 Nxf2 20. Kxf2 Qxa8 (20... dxe3+ $2 21. Bxe3 Qh4+ 22. g3 $17) 21. e4) 18... Nxf3+ $1 $19 {[%emt 0:01:48][%mdl 512]} 19. gxf3 {[%emt 0:01:34]} Bxd4 {[%emt 0:00:14]} 20. Qd2 {[%emt 0:02:56]} Rc8 {[%emt 0:01:37]} 21. Be4 {[%emt 0:01:27][%cal Oc1b2]} Rc5 {[%emt 0:10:57]} (21... Bxf2+ 22. Kxf2 Qh4+ 23. Kg2 Rxe4 (23... Qg5+ 24. Kh1 $15) 24. fxe4) 22. Ba3 {[%emt 0:08:14]} Qg5+ {[%emt 0:00:25]} (22... Bxf2+ 23. Qxf2 Rg5+ 24. Ng2 $16) 23. Kh1 {[%emt 0:00:05]} Bxf2 {[%emt 0:00:05]} 24. Qxf2 {[%emt 0:00:49]} Qxf4 {[%emt 0:00:06]} 25. Bxc5 {[%emt 0:00:02]} bxc5 {[%emt 0:00:56]} 26. Re1 {[%emt 0:00:28]} Re5 {[%emt 0:00:30]} 27. Bc6 {[%emt 0:01:03]} Qd4 {[%emt 0:02:57]} 28. Qg3 {[%emt 0:00:36]} Be2 {[%emt 0:01:53]} 29. f4 {[%emt 0:00:20]} Re3 {[%emt 0:00:48]} 30. Qf2 {[%emt 0:00:01]} Re6 $1 {[%emt 0:00:10]} (30... Rxb3 $2 31. Qxd4 (31. Qxe2 Qxf4 32. Rf1 Re3 $16) (31. Rxe2 Qd6 $14) 31... cxd4 32. Rxe2 $18) 31. Kg2 {[%emt 0:00:31]} Qd2 {[%emt 0:00:50]} 32. Kg1 {[%emt 0:00:50]} Rxc6 {[%emt 0:00:31]} 33. Qxe2 {[%emt 0:00:13][%mdl 4096] Endgame. KQR-KQR} Qd4+ {[%emt 0:00:54]} (33... Qxf4 $2 {perishes.} 34. Qe8+ Kg7 35. Qxc6 $18) 34. Qe3 {[%emt 0:00:44]} Rd6 {[%emt 0:03:28]} (34... Rb6 $19 35. Qxd4 cxd4) 35. Kg2 {[%emt 0:00:31]} (35. Qxd4 $17 Rxd4 (35... cxd4 36. Kf2 $17) 36. Re8+ Kg7 37. Rc8) 35... Qd5+ {[%emt 0:01:09]} 36. Qf3 {[%emt 0:00:33]} (36. Kg1 $142) 36... Qxf3+ {[%emt 0:00:36]} 37. Kxf3 {[%emt 0:00:05] KR-KR} Rb6 {[%emt 0:00:10]} (37... Rd3+ $1 $19 38. Kg2 Rxb3 39. Re8+ Kg7) 38. Re3 $17 {[%emt 0:00:32]} f5 {[%emt 0:00:48]} 39. Rc3 {[%emt 0:00:36][%cal Of3e2]} Kg7 {[%emt 0:00:46]} (39... Rb4 $5) 40. Kf2 {[%emt 0:00:25]} (40. Ke2 $1 $11) 40... Rc6 {[%emt 0:01:16]} 41. Ke2 {[%emt 0:30:05]} Kf6 {[%emt 0:04:51]} 42. Kd3 {[%emt 0:00:00]} g5 {[%emt 0:04:34]} 43. fxg5+ {[%emt 0:00:00]} Kxg5 {[%emt 0:00:48]} 44. Ke3 {[%emt 0:00:00]} Re6+ {[%emt 0:04:52]} (44... h5 $17) 45. Kf3 {[%emt 0:00:00]} (45. Kf2 $1 $11 {remains equal.}) 45... Re5 {[%emt 0:00:10]} 46. Rd3 {[%emt 0:00:00]} f4 {[%emt 0:08:26]} 47. Kf2 {[%emt 0:00:00]} Kg4 {[%emt 0:01:16][%cal Oe5e3] ...Re3! is the strong threat.} 48. Rd7 {[%emt 0:00:00]} (48. h3+ $17 {was worth a try.} Kf5 49. Kf3) 48... Rh5 $1 $19 {[%emt 0:02:21]} 49. Kg2 {[%emt 0:00:00][%cal Oh2h3]} f3+ {[%emt 0:00:04]} 50. Kg1 {[%emt 0:00:00]} Kf4 $1 {[%emt 0:00:14]} 51. Re7 $2 {[%emt 0:00:00]} (51. Ra7 {was called for.} Ke3 52. Re7+ Kf4 53. Ra7) 51... Rh6 $2 {[%emt 0:01:24]} (51... h6 $19 {Threatens to win with ...Re5.} 52. Re6 Rg5+ 53. Kf1 h5 54. Rf6+ Ke3 55. Re6+ Kf4 56. Rf6+ Rf5) 52. Rc7 $11 {[%emt 0:00:00]} Rh5 $2 {[%emt 0:00:12][%mdl 8192]} (52... Rg6+ $11 53. Kf1 Rg5) 53. Re7 $1 $19 {[%emt 0:00:00]} h6 {[%emt 0:02:28]} 54. Re6 $2 {[%emt 0:00:00]} (54. Rh7) 54... Rg5+ {[%emt 0:01:25]} 55. Kf1 {[%emt 0:00:04]} h5 {[%emt 0:00:14]} 56. Rf6+ {[%emt 0:03:57]} Ke4 {[%emt 0:00:33]} 57. Rc6 {[%emt 0:01:14]} Rd5 {[%emt 0:01:08]} 58. Ke1 {[%emt 0:00:03] Dodges Rd1+} (58. Re6+ {was forced.} Re5 59. Rf6) 58... Ke3 {[%emt 0:00:38]} 59. Re6+ {[%emt 0:00:05]} Kf4 {[%emt 0:00:13]} 60. Rc6 $2 {[%emt 0:01:49]} (60. Rf6+ Ke4 61. Re6+ Re5 62. Rf6) 60... Re5+ {[%emt 0:01:52]} 61. Kf1 {[%emt 0:00:08]} Ke3 {[%emt 0:00:04]} 62. Rd6 {[%emt 0:01:00] [#]} h4 $1 {[%emt 0:02:04]} 63. Rd1 {[%emt 0:02:42]} (63. h3 $142) 63... Re4 {[%emt 0:00:50] Strongly threatening ...Rb4.} 64. Rd5 {[%emt 0:00:05]} c4 $2 {[%emt 0:00:54]} ({Better is} 64... h3 $19 {And now ...Rd4 would win.} 65. Rd8 Rb4 66. Re8+ Kd4 67. Rd8+ Kc3) 65. bxc4 $11 {[%emt 0:00:04]} Rxc4 {[%emt 0:00:10]} 66. Re5+ {[%emt 0:00:05]} Kf4 {[%emt 0:00:02]} 67. Rxa5 {[%emt 0:00:07]} Rc1+ {[%emt 0:00:06]} 68. Kf2 {[%emt 0:00:02]} Rc2+ {[%emt 0:00:06]} 69. Kg1 {[%emt 0:00:41]} Rc1+ {[%emt 0:00:34]} (69... Ke3 $5 70. Re5+ $8 Kf4 $11) 70. Kf2 {[%emt 0:00:05]} Rh1 {[%emt 0:00:03]} (70... Ra1 $11) 71. Ra8 $17 {[%emt 0:00:15]} Rxh2+ {[%emt 0:00:04]} 72. Kf1 {[%emt 0:00:10] [#]} Ra2 {[%emt 0:03:13]} (72... h3 $1 $17 {( -> ...Ra2)} 73. Rf8+ Ke3 74. Re8+ Kd3) 73. Rf8+ $1 $11 {[%emt 0:00:05] The position is equal.} Kg4 {[%emt 0:00:10]} (73... Ke3 $5 74. Re8+ $8 Kd4 75. Rd8+ Ke4 76. Re8+ Kf4 77. Rf8+ Ke4 (77... Kg3 78. Rg8+ Kf4 79. Rf8+ $11) 78. Re8+ Kf5 79. Rf8+ Kg6 80. Rxf3 Kg5 $11) 74. Rg8+ {[%emt 0:00:03]} Kf4 {[%emt 0:00:31]} 75. Rf8+ $1 {[%emt 0:00:03]} Kg3 {[%emt 0:00:57][%cal Ra2a1]} (75... Ke3 $5 76. Re8+ $8 Kf4 77. Rf8+ $11) 76. Rg8+ {[%emt 0:00:04]} Kh3 {[%emt 0:00:38]} (76... Kf4 $5 77. Rf8+ $8 $11) 77. Rf8 {[%emt 0:00:51]} Kg4 {[%emt 0:00:26][%cal Oh4h3]} 78. Rg8+ {[%emt 0:00:05]} Kh5 {[%emt 0:00:07][%cal Oh4h3]} (78... Kf4 $5 79. Rf8+ $8 $11) 79. Rh8+ $1 {[%emt 0:00:08]} Kg5 {[%emt 0:00:03]} (79... Kg4 $5 80. Rg8+ $8 $11) 80. Rg8+ {[%emt 0:00:03]} Kf5 {[%emt 0:00:16][%cal Oh4h3]} (80... Kf4 $5 81. Rf8+ $8 $11) 81. Rf8+ {[%emt 0:00:11]} Ke4 {[%emt 0:00:17][%cal Oh4h3]} (81... Kg4 $5 82. Rg8+ $8 $11) 82. Re8+ $1 {[%emt 0:00:05]} Kd4 {[%emt 0:00:13][%cal Oh4h3]} 83. Rd8+ $1 {[%emt 0:00:05]} Kc5 {[%emt 0:00:26][%cal Oh4h3]} (83... Ke3 $5 84. Re8+ $8 Kd4 85. Rd8+ Ke3 86. Re8+ Kd4 $11) 84. Rc8+ {[%emt 0:01:22]} Kd6 {[%emt 0:01:14][%cal Oh4h3]} (84... Kd4 $5 85. Rd8+ $8 Ke3 86. Re8+ Kf4 87. Rf8+ $11) 85. Rd8+ {[%emt 0:00:28]} Ke7 {[%emt 0:00:46]} 86. Rh8 $1 {[%emt 0:00:20]} Rxa4 {[%emt 0:00:15]} 87. Kf2 {[%emt 0:00:02]} Rf4 {[%emt 0:00:05]} 88. Rh6 {[%emt 0:00:05]} Kf7 {[%emt 0:00:12]} 89. Ra6 {[%emt 0:00:05]} Kg7 {[%emt 0:00:23]} 90. Rb6 {[%emt 0:00:04]} h3 {[%emt 0:01:21]} 91. Rb1 {[%emt 0:00:04]} h2 {[%emt 0:01:10]} 92. Rh1 {[%emt 0:00:06]} Rh4 {[%emt 0:00:07]} 93. Kxf3 {[%emt 0:00:03]} Rh6 {[%emt 0:00:02]} 94. Kg3 {[%emt 0:00:05]} Rg6+ {[%emt 0:00:01]} 95. Kxh2 {[%emt 0:00:05]} Rh6+ {[%emt 0:00:01]} 96. Kg2 {[%emt 0:00:04]} Rxh1 {[%emt 0:00:03]} 97. Kxh1 {[%emt 0:00:02] Whites escaped into a draw.   Weighted Error Value: White=0.45/Black=0.29 (precise) .  Loses game:     	White=1     	---        Missed win:     	---       	Black=1      Mistake:       	White=12    	Black=6      Inaccurate:     	White=3     	Black=6      OK:         	White=24    	Black=22     Best:        	White=15    	Black=9      Strong:       	White=7     	Black=4      Brilliant:      	---       	Black=1} 1/2-1/2

[Event "Prague Festival Masters 2024"]
[Site "Prague"]
[Date "2024.03.04"]
[Round "6.1"]
[White "Gukesh D"]
[Black "Bartel, Mateusz"]
[Result "0-1"]
[ECO "D35"]
[WhiteElo "2725"]
[BlackElo "2657"]
[Annotator "TA"]
[PlyCount "80"]
[EventDate "2024.02.22"]
[EventType "tourn"]
[EventCountry "CZE"]
[SourceTitle "playchess.com"]
[Source "ChessBase"]
[SourceQuality "1"]
[TimeControl "40/5400+30:1800+30"]

{[%evp 9,80,14,14,6,14,16,28,20,42,39,52,0,23,18,20,22,26,7,6,-2,0,0,8,-6,0,6,10,-70,-72,-118,-70,-144,-55,-235,-210,-217,-208,-276,-239,-235,-194,-271,-249,-296,-323,-347,-334,-358,-345,-395,-415,-445,-439,-696,-666,-930,-900,-29981,-29982,-29981,-29964,-1996,-1036,-1092,-1022,-2116,-1900,-29984,-29985,-29988,-29989,-29989,-29990]} 1. d4 {[%emt 0:00:05]} d5 {[%emt 0:00:07]} 2. c4 {[%emt 0:00:28]} e6 {[%emt 0:00:03]} 3. Nf3 {[%emt 0:00:42]} Nf6 {[%emt 0:00:11]} 4. Nc3 {[%emt 0:00:13]} Be7 {[%emt 0:00:07]} 5. cxd5 {[%emt 0:01:05]} exd5 {[%emt 0:00:09]} 6. h3 {[%emt 0:00:29]} Nbd7 {[%emt 0:10:37][%cal Bb8d7,Bd7f8,Bf8g6][%mdl 32]} 7. Bf4 {[%emt 0:06:29]} Nf8 {[%emt 0:00:26]} 8. e3 {[%emt 0:01:35] White has an edge.} Ng6 {[%emt 0:00:20]} 9. Bh2 {[%emt 0:01:22]} Bd6 {[%emt 0:02:28]} 10. Ne5 {[%emt 0:07:03]} ({White should play} 10. Bd3 $14) 10... c6 {[%emt 0:10:46]} 11. Bd3 {[%emt 0:07:04]} Bxe5 {[%emt 0:05:57]} 12. dxe5 {[%emt 0:00:38]} Nd7 {[%emt 0:00:06]} 13. f4 {[%emt 0:09:44]} (13. Bxg6 {simplifies} hxg6 14. O-O g5 15. Bg3) 13... Qh4+ $1 {[%emt 0:01:24]} 14. Kd2 {[%emt 0:01:48]} Nc5 {[%emt 0:07:04]} 15. Bc2 {[%emt 0:00:44]} O-O {[%emt 0:00:15]} 16. Kc1 $132 {[%emt 0:21:07][%mdl 2048] White is not holding back} Rd8 {[%emt 0:03:48][%cal Od5d4]} 17. Qf3 {[%emt 0:04:42]} f5 {[%emt 0:04:44]} 18. exf6 {[%emt 0:04:31]} (18. Bg3 $11 Qh6 19. Rd1) 18... Qxf6 $15 {[%emt 0:00:33]} 19. g4 {[%emt 0:04:16] Wards off Bf5} (19. Qh5 $142) 19... b5 {[%emt 0:03:09] Black is more active.} (19... Ne5 $1 $17 {[%cal Re5f3]} 20. Qd1 Nc4) 20. Rd1 {[%emt 0:10:28] [#]} (20. Qg3 $15) 20... b4 {[%emt 0:04:11]} (20... Ne5 $1 $17 {[%cal Re5f3]} 21. Qf2 b4) 21. Ne2 $2 {[%emt 0:00:36] [#] This move loses the game for White.} (21. Na4 $1 $15 Nxa4 22. Bxa4) 21... Ne5 $1 $19 {[%emt 0:00:11]} 22. Qg3 {[%emt 0:00:20]} Nc4 {[%emt 0:00:30][%csl Gc4][%cal Rf6b2]} 23. Nd4 {[%emt 0:00:05]} Re8 {[%emt 0:02:00]} 24. g5 {[%emt 0:05:08]} Qd6 {[%emt 0:03:41]} 25. Bg1 {[%emt 0:02:28]} (25. f5 $142 Qxg3 26. Bxg3) 25... Ne4 {[%emt 0:01:05] A dynamic duo of knights.} 26. Qg2 {[%emt 0:00:41]} a5 {[%emt 0:01:38]} 27. b3 {[%emt 0:03:36]} Na3 {[%emt 0:01:07]} 28. Bxe4 {[%emt 0:00:56]} Rxe4 {[%emt 0:05:10]} 29. Kb2 {[%emt 0:00:09]} a4 {[%emt 0:02:41]} ({Weaker is} 29... c5 30. Ne2 Bf5 31. Ng3 $17) 30. Rac1 {[%emt 0:02:41]} c5 {[%emt 0:01:07]} 31. Nc2 {[%emt 0:03:10]} (31. Nb5 $142 Nxb5 32. Qxe4 a3+ (32... dxe4 $2 33. Rxd6 a3+ 34. Kb1 $19) 33. Kb1 dxe4 34. Rxd6 Nxd6 35. Rxc5) 31... Bf5 {[%emt 0:03:39] ...Qa6 would now be deadly.} 32. Nxa3 {[%emt 0:00:31]} axb3 {[%emt 0:01:24]} ({Less strong is} 32... bxa3+ 33. Ka1 $17) 33. axb3 {[%emt 0:00:14]} Qa6 {[%emt 0:00:58]} 34. Ra1 {[%emt 0:00:01]} bxa3+ {[%emt 0:00:11]} 35. Ka2 {[%emt 0:00:01] White is weak on the light squares} c4 {[%emt 0:00:42] ( -> ...cxb3+)} 36. Rab1 {[%emt 0:01:56] [#]} d4 $1 {[%emt 0:01:27][%mdl 512]} 37. b4 {[%emt 0:00:32]} (37. Re1 Rc8) 37... c3 {[%emt 0:01:55]} 38. b5 {[%emt 0:00:01]} Qa4 {[%emt 0:00:08] Black mates.} 39. Rdc1 {[%emt 0:00:56]} Qc4+ {[%emt 0:00:46]} 40. Rb3 {[%emt 0:00:14]} Be6 {[%emt 0:00:15] Weighted Error Value: White=0.88/Black=0.17 (very precise) .  Loses game:     	White=1     	---        Mistake:       	White=6     	Black=2      Inaccurate:     	White=2     	---        OK:         	White=7     	Black=10     Best:        	White=2     	---        Strong:       	---       	Black=1} 0-1

[Event "Prague Festival Masters 2024"]
[Site "Prague"]
[Date "2024.03.04"]
[Round "6.2"]
[White "Vidit, Santosh Gujrathi"]
[Black "Keymer, Vincent"]
[Result "0-1"]
[ECO "A29"]
[WhiteElo "2742"]
[BlackElo "2743"]
[Annotator "TA"]
[PlyCount "68"]
[EventDate "2024.02.22"]
[EventType "tourn"]
[EventCountry "CZE"]
[SourceTitle "playchess.com"]
[Source "ChessBase"]
[SourceQuality "1"]
[TimeControl "40/5400+30:1800+30"]

{[%evp 16,68,4,12,11,13,13,12,6,10,18,0,23,27,15,17,15,8,13,20,17,8,4,10,23,7,16,0,29,16,22,25,83,87,75,41,69,62,66,52,190,187,185,200,177,172,411,430,413,420,588,-539,-539,-518,-518]} 1. c4 {[%emt 0:00:48]} Nf6 {[%emt 0:00:05]} 2. Nc3 {[%emt 0:00:12]} e5 {[%emt 0:00:05][%cal Be7e5,Be5e4][%mdl 32]} 3. Nf3 {[%emt 0:00:12]} Nc6 {[%emt 0:00:07]} 4. g3 {[%emt 0:00:20]} Bb4 {[%emt 0:00:19]} 5. Bg2 {[%emt 0:00:16]} O-O {[%emt 0:01:01]} 6. O-O {[%emt 0:00:10]} e4 {[%emt 0:02:10]} 7. Ng5 {[%emt 0:00:13]} Bxc3 {[%emt 0:00:14]} 8. bxc3 {[%emt 0:00:11]} Re8 {[%emt 0:01:31]} 9. Qc2 {[%emt 0:00:15]} Qe7 {[%emt 0:14:20]} 10. d3 {[%emt 0:00:20]} exd3 {[%emt 0:00:26]} 11. exd3 {[%emt 0:00:02]} d6 {[%emt 0:00:36] The position is equal.} 12. Nf3 {[%emt 0:00:19]} h6 {[%emt 0:05:47]} 13. h3 {[%emt 0:00:31]} Be6 {[%emt 0:10:38]} 14. Nd4 {[%emt 0:06:47]} Nxd4 {[%emt 0:05:56]} 15. cxd4 {[%emt 0:00:03]} d5 {[%emt 0:00:07]} 16. c5 {[%emt 0:01:54][%cal Bc4c5,Bc5c6][%mdl 32]} Nh7 {[%emt 0:06:10]} 17. Rb1 {[%emt 0:06:24]} b6 {[%emt 0:01:42]} 18. Bf4 {[%emt 0:15:29]} Nf8 {[%emt 0:04:18]} 19. Rfe1 {[%emt 0:02:29]} Qd7 {[%emt 0:12:52]} 20. c6 {[%emt 0:03:48]} Qd8 {[%emt 0:00:00]} 21. h4 {[%emt 0:06:31]} g5 {[%emt 0:07:03]} 22. hxg5 {[%emt 0:02:30]} hxg5 {[%emt 0:00:03]} 23. Bd2 {[%emt 0:03:02]} f6 {[%emt 0:07:56]} (23... Ng6 $11 {keeps the balance.}) 24. f4 $16 {[%emt 0:08:13]} g4 {[%emt 0:07:33] [#]} 25. f5 $1 {[%emt 0:13:25]} Bxf5 {[%emt 0:00:05]} 26. Rxe8 {[%emt 0:00:21]} Qxe8 {[%emt 0:00:01]} 27. Bxd5+ {[%emt 0:00:19]} Be6 {[%emt 0:00:04]} (27... Kg7 $14) 28. Re1 $18 {[%emt 0:08:21]} Bxd5 {[%emt 0:00:10]} 29. Rxe8 {[%emt 0:00:08]} Rxe8 {[%emt 0:00:02][%cal Ba8e8,Be8e7,Be7h7,Bh7h1][%mdl 32]} 30. Qd1 {[%emt 0:04:07] Wards off Re2} f5 {[%emt 0:06:13]} (30... Bf3 31. Qb3+ Kg7) 31. Qf1 {[%emt 0:01:35]} Bf3 {[%emt 0:00:21] [#]} 32. d5 $1 {[%emt 0:01:30][%mdl 512]} Re7 {[%emt 0:03:15][%cal Oe7h7] ...Rh7! is the strong threat.} (32... Kf7 33. Qc1) 33. Bb4 $4 {[%emt 0:01:33][%mdl 8192] [#]} (33. Qa1 $18 {avoids the disaster.}) 33... Rh7 $1 $19 {[%emt 0:00:23]} 34. Kf2 {[%emt 0:12:19] And now Qc1 would win.} Rh1 {[%emt 0:00:06] What a bad dream for White.   Weighted Error Value: White=0.34/Black=0.34.  Missed win:     	White=1     	---        Mistake:       	---       	Black=3      Inaccurate:     	White=1     	Black=2      OK:         	White=14    	Black=11     Best:        	White=3     	Black=2      Strong:       	---       	Black=1} (34... Bxd5 35. Qa1 (35. Ke3 Bf3 $18) 35... Rh2+ 36. Ke3 f4+ 37. Kxf4 Ne6+ 38. Kxg4 $16) 0-1

[Event "Prague Festival Masters 2024"]
[Site "Prague"]
[Date "2024.03.04"]
[Round "6.3"]
[White "Nguyen, Thai Dai Van"]
[Black "Maghsoodloo, Parham"]
[Result "1-0"]
[ECO "E36"]
[WhiteElo "2632"]
[BlackElo "2740"]
[Annotator "TA"]
[PlyCount "63"]
[EventDate "2024.02.22"]
[EventType "tourn"]
[EventCountry "CZE"]
[SourceTitle "playchess.com"]
[Source "ChessBase"]
[SourceQuality "1"]
[TimeControl "40/5400+30:1800+30"]

{[%evp 12,63,15,11,6,21,0,0,8,17,20,0,1,18,14,6,7,0,90,108,90,99,97,81,338,338,389,225,224,231,222,126,112,120,620,600,614,598,760,233,220,223,231,221,235,215,380,370,480,464,716,712,1104,1084]} 1. d4 {[%emt 0:00:04]} Nf6 {[%emt 0:00:13]} 2. c4 {[%emt 0:00:10]} e6 {[%emt 0:00:05]} 3. Nc3 {[%emt 0:00:11]} Bb4 {[%emt 0:00:26]} 4. Qc2 {[%emt 0:00:07]} d5 {[%emt 0:02:13]} 5. a3 {[%emt 0:00:14]} Bxc3+ {[%emt 0:00:07]} 6. Qxc3 {[%emt 0:00:06]} dxc4 {[%emt 0:00:08]} 7. Qxc4 {[%emt 0:01:47]} b6 {[%emt 0:00:40]} 8. Nf3 {[%emt 0:02:20]} Ba6 {[%emt 0:00:25]} 9. Qa4+ {[%emt 0:18:53]} Qd7 {[%emt 0:00:07] The position is equal.} 10. Qc2 {[%emt 0:00:29]} O-O {[%emt 0:16:00][%cal Oc7c5]} 11. Bg5 {[%emt 0:04:13]} c5 {[%emt 0:08:33]} 12. Bxf6 {[%emt 0:00:32]} gxf6 {[%emt 0:00:13]} 13. dxc5 {[%emt 0:00:50]} Rc8 {[%emt 0:02:52][%cal Bf8c8,Bc8c5,Bc5h5][%mdl 32]} 14. Rd1 {[%emt 0:07:47]} Qb7 {[%emt 0:11:03]} (14... Rxc5 15. Qe4 Qc7 16. Qxa8 $16) (14... Qe7 $11) 15. h4 $1 $16 {[%emt 0:23:17]} Nd7 {[%emt 0:07:44]} 16. Qd2 {[%emt 0:01:11] White is more active.} Nxc5 {[%emt 0:02:25]} 17. Qh6 {[%emt 0:00:13][%cal Oh1h3]} Ne4 $2 {[%emt 0:01:49][%mdl 8192]} (17... Rd8 $16 {is a better defense.} 18. Nd4 (18. Qxf6 $2 Rxd1+ 19. Kxd1 Ne4 $19) (18. Rxd8+ Rxd8 19. Qxf6 Qc7 $17) 18... Nd3+ 19. exd3 Rxd4) 18. Rh3 $18 {[%emt 0:05:02] Black must now prevent Nd2.} Rc5 {[%emt 0:20:24]} (18... Rc2 $2 19. Nd2 Rxd2 (19... Rxb2 $2 20. Nxe4 Qxe4 21. Rg3+ $18) 20. Rxd2 $18) 19. Nd4 {[%emt 0:14:26]} (19. Nh2 $142 {aiming for f3.} Qe7 20. f3) 19... Qc7 {[%emt 0:04:19]} 20. f3 {[%emt 0:03:38][%cal Bf2f3,Bf3f4][%mdl 32]} Ng3 {[%emt 0:00:42]} 21. b4 {[%emt 0:04:09]} (21. Qxf6 $6 Nh5 22. Qh6 Kh8 $16) (21. Kf2 $18 Nh5 22. b4) 21... Rh5 $16 {[%emt 0:16:26]} 22. Qxf6 {[%emt 0:00:59][%cal Od4e6] Nxe6! would now be deadly.} Qc3+ $2 {[%emt 0:01:14][%mdl 8192]} (22... Rd5 $16) 23. Kf2 $18 {[%emt 0:00:08]} Nf5 {[%emt 0:00:03][%cal Bg3f5,Bf5d6,Bd6e4][%mdl 32]} 24. f4 {[%emt 0:08:31]} Nd6 {[%emt 0:02:15]} 25. Kg1 $2 $40 {[%emt 0:00:13][%mdl 128] White has strong attack.} ({Weaker is} 25. Rxc3 Ne4+ 26. Kg1 Nxf6 $16) (25. Rg3+ $2 Qxg3+ 26. Kxg3 Ne4+ 27. Kh3 Nxf6 $19) (25. Re3) 25... Ne4 {[%emt 0:00:08] [#] Strongly threatening ...Qxh3.} 26. Qe7 $1 {[%emt 0:00:03]} ({Resist} 26. Rxc3 $6 Nxf6 27. Rdc1 e5 28. fxe5 Rxe5) 26... Qc8 {[%emt 0:00:28] [#]} 27. b5 $1 {[%emt 0:03:34][%mdl 512]} Bxb5 {[%emt 0:01:43]} 28. Re3 {[%emt 0:00:39]} Ba4 $2 {[%emt 0:00:14]} (28... Rd5) 29. Rdd3 {[%emt 0:00:12]} Qc5 {[%emt 0:00:56] [#]} 30. Rg3+ $1 {[%emt 0:00:58] White is clearly winning.} Kh8 {[%emt 0:00:05]} (30... Nxg3 $2 {perishes.} 31. Rxg3+) (30... Rg5 $142 31. Rxg5+ Nxg5 32. Qxg5+ Qxg5 33. hxg5 Re8) 31. Qxf7 {[%emt 0:00:14]} Rg5 {[%emt 0:01:25] Inhibits Qg7+.} 32. Rxg5 {[%emt 0:00:14] Weighted Error Value: White=0.39/Black=0.56.  Loses game:     	---       	Black=2      Mistake:       	White=2     	Black=3      Inaccurate:     	---       	Black=1      OK:         	White=9     	Black=6      Best:        	White=5     	Black=4      Strong:       	White=2     	---} 1-0